[Event "Titled Tuesday Blitz March 21 Early 2023"]
[White "Paravyan, David"]
[Black "Lazavik, Denis"]
[WhiteFideId "4194985"]
[BlackFideId "13515110"]
[WhiteElo "2577"]
[BlackElo "2560"]
[Result "1/2-1/2"]
[Round "11"]
[TimeControl "180+2"]
[Date "2023.03.21"]
[WhiteClock "0:00:13"]
[BlackClock "0:01:28"]

1. e4 {[%clk 0:03:00]}  e5 {[%clk 0:03:00]} 2. Nf3 {[%clk 0:03:01]}  Nc6 {[%clk 0:03:01]} 3. Nc3 {[%clk 0:03:02]}  Nf6 {[%clk 0:03:01]} 4. d4 {[%clk 0:03:02]}  exd4 {[%clk 0:03:02]} 5. Nxd4 {[%clk 0:03:03]}  Bb4 {[%clk 0:03:01]} 6. Nxc6 {[%clk 0:03:04]}  bxc6 {[%clk 0:03:02]} 7. Bd3 {[%clk 0:03:04]}  O-O {[%clk 0:03:01]} 8. O-O {[%clk 0:03:05]}  d5 {[%clk 0:03:01]} 9. exd5 {[%clk 0:03:06]}  cxd5 {[%clk 0:03:02]} 10. h3 {[%clk 0:03:06]}  c6 {[%clk 0:02:55]} 11. Bf4 {[%clk 0:03:06]}  Bd6 {[%clk 0:02:51]} 12. Qd2 {[%clk 0:03:06]}  Rb8 {[%clk 0:02:50]} 13. Rab1 {[%clk 0:03:05]}  Qc7 {[%clk 0:02:42]} 14. Bxd6 {[%clk 0:03:04]}  Qxd6 {[%clk 0:02:43]} 15. Rfe1 {[%clk 0:03:04]}  Bd7 {[%clk 0:02:42]} 16. a3 {[%clk 0:02:53]}  Rfe8 {[%clk 0:02:42]} 17. Rxe8+ {[%clk 0:02:45]}  Rxe8 {[%clk 0:02:42]} 18. Re1 {[%clk 0:02:06]}  Rxe1+ {[%clk 0:02:39]} 19. Qxe1 {[%clk 0:02:07]}  c5 {[%clk 0:02:35]} 20. Bf1 {[%clk 0:01:27]}  g6 {[%clk 0:02:30]} 21. Qe3 {[%clk 0:01:12]}  Kg7 {[%clk 0:02:27]} 22. Ne2 {[%clk 0:01:05]}  d4 {[%clk 0:02:19]} 23. Qf4 {[%clk 0:01:03]}  Qb6 {[%clk 0:02:14]} 24. b3 {[%clk 0:00:44]}  Bf5 {[%clk 0:02:13]} 25. b4 {[%clk 0:00:40]}  cxb4 {[%clk 0:01:47]} 26. axb4 {[%clk 0:00:39]}  d3 {[%clk 0:01:45]} 27. cxd3 {[%clk 0:00:26]}  Bxd3 {[%clk 0:01:46]} 28. Nd4 {[%clk 0:00:22]}  Bxf1 {[%clk 0:01:30]} 29. Kxf1 {[%clk 0:00:23]}  a5 {[%clk 0:01:29]} 30. bxa5 {[%clk 0:00:18]}  Qxa5 {[%clk 0:01:28]} 31. Kg1 {[%clk 0:00:13]} 1/2-1/2


[Site "https://www.chess.com"]

[Event "Titled Tuesday Blitz March 21 Early 2023"]
[White "Dubov, Daniil"]
[Black "Jones, Gawain C B"]
[WhiteFideId "24126055"]
[BlackFideId "409561"]
[WhiteElo "2802"]
[BlackElo "2645"]
[Result "1-0"]
[Round "11"]
[TimeControl "180+2"]
[Date "2023.03.21"]
[WhiteClock "0:00:03"]
[BlackClock "0:00:03"]

1. d4 {[%clk 0:03:00]}  Nf6 {[%clk 0:02:59]} 2. Nf3 {[%clk 0:03:00]}  g6 {[%clk 0:03:00]} 3. c4 {[%clk 0:03:00]}  Bg7 {[%clk 0:03:00]} 4. Nc3 {[%clk 0:03:01]}  O-O {[%clk 0:03:00]} 5. Bg5 {[%clk 0:03:01]}  h6 {[%clk 0:02:57]} 6. Bh4 {[%clk 0:03:00]}  c5 {[%clk 0:02:50]} 7. d5 {[%clk 0:02:58]}  d6 {[%clk 0:02:48]} 8. e3 {[%clk 0:02:58]}  Qb6 {[%clk 0:02:41]} 9. Rb1 {[%clk 0:02:57]}  Bf5 {[%clk 0:02:40]} 10. Bd3 {[%clk 0:02:56]}  Bxd3 {[%clk 0:02:39]} 11. Qxd3 {[%clk 0:02:57]}  Nbd7 {[%clk 0:02:35]} 12. O-O {[%clk 0:02:57]}  g5 {[%clk 0:02:34]} 13. Bg3 {[%clk 0:02:57]}  Nh5 {[%clk 0:02:35]} 14. Qf5 {[%clk 0:02:44]}  Qd8 {[%clk 0:02:26]} 15. Ne4 {[%clk 0:02:27]}  Qc8 {[%clk 0:02:16]} 16. h4 {[%clk 0:02:18]}  Ndf6 {[%clk 0:01:44]} 17. Nxf6+ {[%clk 0:02:05]}  Bxf6 {[%clk 0:01:39]} 18. Qe4 {[%clk 0:02:04]}  Kg7 {[%clk 0:01:22]} 19. b4 {[%clk 0:01:41]}  b6 {[%clk 0:01:15]} 20. Nh2 {[%clk 0:01:23]}  Nxg3 {[%clk 0:00:48]} 21. fxg3 {[%clk 0:01:24]}  Be5 {[%clk 0:00:48]} 22. hxg5 {[%clk 0:01:21]}  hxg5 {[%clk 0:00:45]} 23. Rf5 {[%clk 0:01:20]}  f6 {[%clk 0:00:42]} 24. Nf3 {[%clk 0:01:20]}  cxb4 {[%clk 0:00:40]} 25. Nxg5 {[%clk 0:01:13]}  Rh8 {[%clk 0:00:32]} 26. Rbf1 {[%clk 0:00:34]}  Qg8 {[%clk 0:00:18]} 27. g4 {[%clk 0:00:29]}  Kf8 {[%clk 0:00:16]} 28. Nf3 {[%clk 0:00:16]}  Ke8 {[%clk 0:00:14]} 29. g5 {[%clk 0:00:13]}  Qh7 {[%clk 0:00:11]} 30. Nxe5 {[%clk 0:00:11]}  Qh2+ {[%clk 0:00:07]} 31. Kf2 {[%clk 0:00:11]}  fxe5 {[%clk 0:00:08]} 32. Ke2 {[%clk 0:00:08]}  Kd7 {[%clk 0:00:07]} 33. Rf7 {[%clk 0:00:08]}  Rae8 {[%clk 0:00:05]} 34. g6 {[%clk 0:00:06]}  Qh5+ {[%clk 0:00:04]} 35. g4 {[%clk 0:00:05]}  Qh2+ {[%clk 0:00:04]} 36. R1f2 {[%clk 0:00:05]}  Qg1 {[%clk 0:00:04]} 37. g7 {[%clk 0:00:05]}  Rh1 {[%clk 0:00:04]} 38. Qc2 {[%clk 0:00:01]}  Kc7 {[%clk 0:00:02]} 39. Kd3 {[%clk 0:00:01]}  Qxg4 {[%clk 0:00:02]} 40. Qa4 {[%clk 0:00:01]}  Qg6+ {[%clk 0:00:02]} 41. Kd2 {[%clk 0:00:01]}  Rh2 {[%clk 0:00:01]} 42. Qc6+ {[%clk 0:00:01]}  Kb8 {[%clk 0:00:01]} 43. Qxe8+ {[%clk 0:00:02]}  Kb7 {[%clk 0:00:02]} 44. Qxe7+ {[%clk 0:00:02]}  Ka6 {[%clk 0:00:03]} 45. Qxa7# {[%clk 0:00:03]} 1-0


[Site "https://www.chess.com"]

[Event "Titled Tuesday Blitz March 21 Early 2023"]
[White "Svane, Rasmus"]
[Black "Le, Tuan Minh"]
[WhiteFideId "4657101"]
[BlackFideId "12401153"]
[WhiteElo "2597"]
[BlackElo "2558"]
[Result "0-1"]
[Round "11"]
[TimeControl "180+2"]
[Date "2023.03.21"]
[WhiteClock "0:00:10"]
[BlackClock "0:00:16"]

1. Nf3 {[%clk 0:03:00]}  d5 {[%clk 0:02:59]} 2. g3 {[%clk 0:03:01]}  Nd7 {[%clk 0:03:00]} 3. d4 {[%clk 0:03:00]}  Nb6 {[%clk 0:02:58]} 4. Nc3 {[%clk 0:03:01]}  Nf6 {[%clk 0:02:56]} 5. Bg2 {[%clk 0:03:01]}  h6 {[%clk 0:02:49]} 6. a4 {[%clk 0:02:49]}  a5 {[%clk 0:02:48]} 7. Qd3 {[%clk 0:02:26]}  e6 {[%clk 0:02:14]} 8. e4 {[%clk 0:02:19]}  Be7 {[%clk 0:02:13]} 9. O-O {[%clk 0:02:13]}  O-O {[%clk 0:01:53]} 10. e5 {[%clk 0:02:13]}  Nfd7 {[%clk 0:01:53]} 11. Ne2 {[%clk 0:02:13]}  c5 {[%clk 0:01:48]} 12. c3 {[%clk 0:02:12]}  cxd4 {[%clk 0:01:48]} 13. cxd4 {[%clk 0:02:13]}  Nb8 {[%clk 0:01:48]} 14. Nf4 {[%clk 0:01:59]}  Nc6 {[%clk 0:01:48]} 15. Nh5 {[%clk 0:01:54]}  Bd7 {[%clk 0:01:26]} 16. b3 {[%clk 0:01:36]}  Rc8 {[%clk 0:01:17]} 17. Qd2 {[%clk 0:01:32]}  Bg5 {[%clk 0:00:45]} 18. Nxg5 {[%clk 0:01:11]}  Qxg5 {[%clk 0:00:46]} 19. Nf4 {[%clk 0:01:10]}  Nb4 {[%clk 0:00:40]} 20. Ba3 {[%clk 0:01:08]}  Rc2 {[%clk 0:00:38]} 21. Qe1 {[%clk 0:01:03]}  Qe7 {[%clk 0:00:38]} 22. Nd3 {[%clk 0:01:02]}  Rfc8 {[%clk 0:00:19]} 23. Nxb4 {[%clk 0:01:02]}  axb4 {[%clk 0:00:20]} 24. Bxb4 {[%clk 0:01:03]}  Qg5 {[%clk 0:00:19]} 25. Bc5 {[%clk 0:00:59]}  Na8 {[%clk 0:00:18]} 26. Qb4 {[%clk 0:00:45]}  Bc6 {[%clk 0:00:16]} 27. h4 {[%clk 0:00:45]}  Qg6 {[%clk 0:00:16]} 28. Rac1 {[%clk 0:00:45]}  Nc7 {[%clk 0:00:16]} 29. Rxc2 {[%clk 0:00:31]}  Qxc2 {[%clk 0:00:17]} 30. Qa3 {[%clk 0:00:32]}  Ra8 {[%clk 0:00:17]} 31. Rc1 {[%clk 0:00:19]}  Qd2 {[%clk 0:00:18]} 32. Qa1 {[%clk 0:00:19]}  Na6 {[%clk 0:00:15]} 33. Bd6 {[%clk 0:00:18]}  Qd3 {[%clk 0:00:06]} 34. Qc3 {[%clk 0:00:18]}  Qe2 {[%clk 0:00:06]} 35. Bf1 {[%clk 0:00:18]}  Qg4 {[%clk 0:00:04]} 36. b4 {[%clk 0:00:18]}  Bxa4 {[%clk 0:00:02]} 37. b5 {[%clk 0:00:18]}  Nb8 {[%clk 0:00:02]} 38. Qc8+ {[%clk 0:00:17]}  Kh7 {[%clk 0:00:03]} 39. Qxb7 {[%clk 0:00:18]}  Qxd4 {[%clk 0:00:03]} 40. Qxa8 {[%clk 0:00:17]}  Nd7 {[%clk 0:00:03]} 41. Rc8 {[%clk 0:00:15]}  Nb6 {[%clk 0:00:03]} 42. h5 {[%clk 0:00:14]}  Nxa8 {[%clk 0:00:03]} 43. Rxa8 {[%clk 0:00:15]}  Qd1 {[%clk 0:00:02]} 44. Rxa4 {[%clk 0:00:12]}  Qxa4 {[%clk 0:00:03]} 45. b6 {[%clk 0:00:13]}  Qb3 {[%clk 0:00:03]} 46. Bc5 {[%clk 0:00:12]}  Qb1 {[%clk 0:00:03]} 47. Kg2 {[%clk 0:00:12]}  Qe4+ {[%clk 0:00:04]} 48. f3 {[%clk 0:00:12]}  Qc2+ {[%clk 0:00:04]} 49. Bf2 {[%clk 0:00:13]}  Qb2 {[%clk 0:00:03]} 50. Bd3+ {[%clk 0:00:12]}  Kg8 {[%clk 0:00:03]} 51. Ba6 {[%clk 0:00:13]}  d4 {[%clk 0:00:04]} 52. b7 {[%clk 0:00:13]}  Kf8 {[%clk 0:00:04]} 53. Kh3 {[%clk 0:00:12]}  Qb1 {[%clk 0:00:04]} 54. Bxd4 {[%clk 0:00:12]}  g6 {[%clk 0:00:04]} 55. Bc5+ {[%clk 0:00:12]}  Kg7 {[%clk 0:00:05]} 56. Ba7 {[%clk 0:00:12]}  gxh5 {[%clk 0:00:05]} 57. Kg2 {[%clk 0:00:11]}  Qa2+ {[%clk 0:00:06]} 58. Kg1 {[%clk 0:00:10]}  Qb1+ {[%clk 0:00:06]} 59. Kf2 {[%clk 0:00:10]}  Qa2+ {[%clk 0:00:06]} 60. Ke1 {[%clk 0:00:10]}  Qa1+ {[%clk 0:00:07]} 61. Kd2 {[%clk 0:00:10]}  Qb2+ {[%clk 0:00:07]} 62. Kd1 {[%clk 0:00:10]}  Qa1+ {[%clk 0:00:08]} 63. Kc2 {[%clk 0:00:10]}  Qa2+ {[%clk 0:00:08]} 64. Kc3 {[%clk 0:00:10]}  Qa3+ {[%clk 0:00:09]} 65. Kd4 {[%clk 0:00:10]}  Qb4+ {[%clk 0:00:07]} 66. Kd3 {[%clk 0:00:10]}  Qa3+ {[%clk 0:00:08]} 67. Kc2 {[%clk 0:00:09]}  Qa2+ {[%clk 0:00:08]} 68. Kc3 {[%clk 0:00:10]}  Qxa6 {[%clk 0:00:06]} 69. b8=Q {[%clk 0:00:10]}  Qc6+ {[%clk 0:00:07]} 70. Kd2 {[%clk 0:00:09]}  Qxf3 {[%clk 0:00:07]} 71. Bc5 {[%clk 0:00:06]}  Qd5+ {[%clk 0:00:07]} 72. Ke2 {[%clk 0:00:06]}  Qxc5 {[%clk 0:00:07]} 73. Qb2 {[%clk 0:00:06]}  Qc4+ {[%clk 0:00:07]} 74. Kf2 {[%clk 0:00:06]}  h4 {[%clk 0:00:08]} 75. gxh4 {[%clk 0:00:06]}  Qxh4+ {[%clk 0:00:08]} 76. Kf3 {[%clk 0:00:06]}  Qh3+ {[%clk 0:00:09]} 77. Kf4 {[%clk 0:00:06]}  Qf5+ {[%clk 0:00:09]} 78. Kg3 {[%clk 0:00:07]}  h5 {[%clk 0:00:10]} 79. Qd4 {[%clk 0:00:07]}  Qg5+ {[%clk 0:00:10]} 80. Kf3 {[%clk 0:00:07]}  Qg4+ {[%clk 0:00:07]} 81. Qxg4+ {[%clk 0:00:07]}  hxg4+ {[%clk 0:00:08]} 82. Kxg4 {[%clk 0:00:08]}  Kg6 {[%clk 0:00:09]} 83. Kf4 {[%clk 0:00:04]}  Kh5 {[%clk 0:00:10]} 84. Ke4 {[%clk 0:00:02]}  Kg4 {[%clk 0:00:10]} 85. Ke3 {[%clk 0:00:02]}  Kf5 {[%clk 0:00:10]} 86. Kd4 {[%clk 0:00:03]}  Kf4 {[%clk 0:00:11]} 87. Kc5 {[%clk 0:00:03]}  Kxe5 {[%clk 0:00:12]} 88. Kc6 {[%clk 0:00:04]}  Kf4 {[%clk 0:00:12]} 89. Kc7 {[%clk 0:00:05]}  e5 {[%clk 0:00:13]} 90. Kd7 {[%clk 0:00:06]}  e4 {[%clk 0:00:14]} 91. Ke8 {[%clk 0:00:07]}  e3 {[%clk 0:00:15]} 92. Ke7 {[%clk 0:00:08]}  e2 {[%clk 0:00:16]} 93. Ke8 {[%clk 0:00:09]}  e1=Q+ {[%clk 0:00:16]} 94. Kf8 {[%clk 0:00:10]} 0-1


[Site "https://www.chess.com"]

[Event "Titled Tuesday Blitz March 21 Early 2023"]
[White "Bok, Benjamin"]
[Black "Grigoriants, Sergey"]
[WhiteFideId "1017063"]
[BlackFideId "4130804"]
[WhiteElo "2658"]
[BlackElo "2502"]
[Result "1/2-1/2"]
[Round "11"]
[TimeControl "180+2"]
[Date "2023.03.21"]
[WhiteClock "0:00:05"]
[BlackClock "0:00:26"]

1. d4 {[%clk 0:03:00]}  d5 {[%clk 0:02:58]} 2. c4 {[%clk 0:03:00]}  c6 {[%clk 0:02:58]} 3. cxd5 {[%clk 0:03:01]}  cxd5 {[%clk 0:02:58]} 4. Nf3 {[%clk 0:03:01]}  Nf6 {[%clk 0:02:56]} 5. Nc3 {[%clk 0:03:02]}  a6 {[%clk 0:02:56]} 6. Bf4 {[%clk 0:03:01]}  Nc6 {[%clk 0:02:56]} 7. Rc1 {[%clk 0:03:01]}  e6 {[%clk 0:02:52]} 8. e3 {[%clk 0:03:02]}  Be7 {[%clk 0:02:48]} 9. Bd3 {[%clk 0:03:01]}  O-O {[%clk 0:02:48]} 10. h3 {[%clk 0:03:01]}  Bd7 {[%clk 0:02:48]} 11. O-O {[%clk 0:03:01]}  Rc8 {[%clk 0:02:49]} 12. a3 {[%clk 0:02:56]}  Na5 {[%clk 0:02:45]} 13. Ne5 {[%clk 0:02:54]}  b5 {[%clk 0:02:45]} 14. a4 {[%clk 0:01:59]}  Nc4 {[%clk 0:02:26]} 15. Qe2 {[%clk 0:01:55]}  Qa5 {[%clk 0:02:08]} 16. axb5 {[%clk 0:01:53]}  Bxb5 {[%clk 0:02:04]} 17. Nxb5 {[%clk 0:01:38]}  axb5 {[%clk 0:02:02]} 18. Bg5 {[%clk 0:01:16]}  Qb4 {[%clk 0:01:53]} 19. Bxf6 {[%clk 0:01:09]}  Bxf6 {[%clk 0:01:53]} 20. Nd7 {[%clk 0:01:09]}  Rfd8 {[%clk 0:01:52]} 21. Qh5 {[%clk 0:01:03]}  h6 {[%clk 0:01:38]} 22. Nxf6+ {[%clk 0:01:03]}  gxf6 {[%clk 0:01:38]} 23. Qxh6 {[%clk 0:01:03]}  f5 {[%clk 0:01:39]} 24. g4 {[%clk 0:00:32]}  Qf8 {[%clk 0:01:01]} 25. Qxf8+ {[%clk 0:00:25]}  Kxf8 {[%clk 0:01:01]} 26. gxf5 {[%clk 0:00:22]}  Nxb2 {[%clk 0:01:02]} 27. Bxb5 {[%clk 0:00:18]}  Rb8 {[%clk 0:00:47]} 28. Rc5 {[%clk 0:00:14]}  exf5 {[%clk 0:00:47]} 29. Ra1 {[%clk 0:00:10]}  Rb6 {[%clk 0:00:46]} 30. Ra2 {[%clk 0:00:09]}  Nd1 {[%clk 0:00:44]} 31. Rd2 {[%clk 0:00:09]}  Nc3 {[%clk 0:00:42]} 32. Rxc3 {[%clk 0:00:09]}  Rxb5 {[%clk 0:00:43]} 33. Kg2 {[%clk 0:00:09]}  f4 {[%clk 0:00:42]} 34. exf4 {[%clk 0:00:09]}  Rb6 {[%clk 0:00:38]} 35. Re3 {[%clk 0:00:09]}  Rf6 {[%clk 0:00:34]} 36. Rf3 {[%clk 0:00:09]}  Re8 {[%clk 0:00:33]} 37. Rc2 {[%clk 0:00:07]}  Re4 {[%clk 0:00:33]} 38. Rd3 {[%clk 0:00:06]}  Rexf4 {[%clk 0:00:33]} 39. Rc5 {[%clk 0:00:06]}  Rxf2+ {[%clk 0:00:32]} 40. Kg1 {[%clk 0:00:06]}  R2f5 {[%clk 0:00:31]} 41. Rg3 {[%clk 0:00:05]}  Re6 {[%clk 0:00:30]} 42. Rc8+ {[%clk 0:00:04]}  Ke7 {[%clk 0:00:31]} 43. Rc1 {[%clk 0:00:05]}  Re4 {[%clk 0:00:30]} 44. Rc7+ {[%clk 0:00:04]}  Kf6 {[%clk 0:00:29]} 45. Rc6+ {[%clk 0:00:05]}  Re6 {[%clk 0:00:29]} 46. Rc2 {[%clk 0:00:04]}  Re4 {[%clk 0:00:25]} 47. Rc6+ {[%clk 0:00:04]}  Ke7 {[%clk 0:00:25]} 48. Rc7+ {[%clk 0:00:05]}  Kf6 {[%clk 0:00:26]} 49. Rc6+ {[%clk 0:00:05]} 1/2-1/2


[Site "https://www.chess.com"]

[Event "Titled Tuesday Blitz March 21 Early 2023"]
[White "Makhnev, Denis"]
[Black "Bluebaum, Matthias"]
[WhiteFideId "13707647"]
[BlackFideId "24651516"]
[WhiteElo "2525"]
[BlackElo "2638"]
[Result "1-0"]
[Round "11"]
[TimeControl "180+2"]
[Date "2023.03.21"]
[WhiteClock "0:00:03"]
[BlackClock "0:00:04"]

1. d4 {[%clk 0:03:00]}  d5 {[%clk 0:03:00]} 2. c4 {[%clk 0:03:01]}  e6 {[%clk 0:03:00]} 3. Nf3 {[%clk 0:03:02]}  Nf6 {[%clk 0:03:00]} 4. Nc3 {[%clk 0:03:02]}  Bb4 {[%clk 0:03:00]} 5. Qa4+ {[%clk 0:03:03]}  Nc6 {[%clk 0:03:00]} 6. e3 {[%clk 0:03:04]}  O-O {[%clk 0:03:01]} 7. Qc2 {[%clk 0:03:04]}  Bxc3+ {[%clk 0:02:59]} 8. Qxc3 {[%clk 0:03:02]}  Ne4 {[%clk 0:02:59]} 9. Qc2 {[%clk 0:03:02]}  e5 {[%clk 0:02:59]} 10. Nxe5 {[%clk 0:02:51]}  Nb4 {[%clk 0:02:49]} 11. Qb3 {[%clk 0:02:39]}  a5 {[%clk 0:02:23]} 12. a3 {[%clk 0:02:33]}  Qh4 {[%clk 0:01:56]} 13. g3 {[%clk 0:02:32]}  Nxg3 {[%clk 0:01:56]} 14. fxg3 {[%clk 0:02:03]}  Qe4 {[%clk 0:01:56]} 15. axb4 {[%clk 0:00:43]}  Qxh1 {[%clk 0:01:55]} 16. Qc2 {[%clk 0:00:44]}  Bh3 {[%clk 0:01:47]} 17. Qf2 {[%clk 0:00:39]}  f6 {[%clk 0:01:28]} 18. Nd3 {[%clk 0:00:23]}  dxc4 {[%clk 0:01:26]} 19. Nf4 {[%clk 0:00:20]}  Bxf1 {[%clk 0:01:25]} 20. Qxf1 {[%clk 0:00:21]}  Qxf1+ {[%clk 0:01:24]} 21. Kxf1 {[%clk 0:00:21]}  axb4 {[%clk 0:01:24]} 22. Rb1 {[%clk 0:00:15]}  b6 {[%clk 0:00:54]} 23. Nd5 {[%clk 0:00:09]}  Ra4 {[%clk 0:00:48]} 24. Bd2 {[%clk 0:00:09]}  Rfa8 {[%clk 0:00:21]} 25. Nxb4 {[%clk 0:00:08]}  Ra1 {[%clk 0:00:20]} 26. Rxa1 {[%clk 0:00:08]}  Rxa1+ {[%clk 0:00:21]} 27. Kf2 {[%clk 0:00:09]}  Kf7 {[%clk 0:00:09]} 28. Nd5 {[%clk 0:00:09]}  Ra7 {[%clk 0:00:09]} 29. e4 {[%clk 0:00:10]}  Ke6 {[%clk 0:00:10]} 30. g4 {[%clk 0:00:07]}  b5 {[%clk 0:00:06]} 31. Ke3 {[%clk 0:00:06]}  c6 {[%clk 0:00:06]} 32. Nb4 {[%clk 0:00:06]}  Kd6 {[%clk 0:00:06]} 33. Nc2 {[%clk 0:00:06]}  c5 {[%clk 0:00:06]} 34. dxc5+ {[%clk 0:00:05]}  Kxc5 {[%clk 0:00:07]} 35. Bb4+ {[%clk 0:00:06]}  Kb6 {[%clk 0:00:08]} 36. Bc3 {[%clk 0:00:05]}  Rd7 {[%clk 0:00:06]} 37. Nd4 {[%clk 0:00:04]}  Kc5 {[%clk 0:00:06]} 38. Ne6+ {[%clk 0:00:04]}  Kb6 {[%clk 0:00:07]} 39. Nf4 {[%clk 0:00:05]}  Kc6 {[%clk 0:00:04]} 40. h4 {[%clk 0:00:04]}  Ra7 {[%clk 0:00:05]} 41. g5 {[%clk 0:00:04]}  fxg5 {[%clk 0:00:05]} 42. hxg5 {[%clk 0:00:05]}  h6 {[%clk 0:00:05]} 43. g6 {[%clk 0:00:05]}  Rd7 {[%clk 0:00:01]} 44. Ne6 {[%clk 0:00:05]}  Rd6 {[%clk 0:00:02]} 45. Nxg7 {[%clk 0:00:01]}  Rxg6 {[%clk 0:00:03]} 46. Nf5 {[%clk 0:00:02]}  h5 {[%clk 0:00:03]} 47. Ne7+ {[%clk 0:00:02]}  Kd7 {[%clk 0:00:03]} 48. Nxg6 {[%clk 0:00:03]}  Ke6 {[%clk 0:00:04]} 49. Bd4 {[%clk 0:00:03]} 1-0


[Site "https://www.chess.com"]

[Event "Titled Tuesday Blitz March 21 Early 2023"]
[White "Navara, David"]
[Black "Bortnyk, Olexandr"]
[WhiteFideId "309095"]
[BlackFideId "14120828"]
[WhiteElo "2675"]
[BlackElo "2734"]
[Result "0-1"]
[Round "11"]
[TimeControl "180+2"]
[Date "2023.03.21"]
[WhiteClock "0:02:07"]
[BlackClock "0:02:11"]

1. e4 {[%clk 0:03:00]}  Nf6 {[%clk 0:02:59]} 2. e5 {[%clk 0:03:01]}  Nd5 {[%clk 0:03:00]} 3. d4 {[%clk 0:03:02]}  d6 {[%clk 0:03:00]} 4. Nf3 {[%clk 0:03:02]}  dxe5 {[%clk 0:03:01]} 5. Nxe5 {[%clk 0:03:03]}  c6 {[%clk 0:03:02]} 6. Be2 {[%clk 0:03:03]}  Bf5 {[%clk 0:03:02]} 7. O-O {[%clk 0:03:02]}  Nd7 {[%clk 0:03:03]} 8. Nf3 {[%clk 0:03:02]}  e6 {[%clk 0:03:03]} 9. c4 {[%clk 0:03:01]}  N5f6 {[%clk 0:03:03]} 10. Nc3 {[%clk 0:02:57]}  Bd6 {[%clk 0:03:04]} 11. Nh4 {[%clk 0:02:56]}  Bg6 {[%clk 0:03:04]} 12. g3 {[%clk 0:02:53]}  O-O {[%clk 0:03:04]} 13. Nxg6 {[%clk 0:02:53]}  hxg6 {[%clk 0:03:04]} 14. Be3 {[%clk 0:02:54]}  e5 {[%clk 0:03:03]} 15. Bf3 {[%clk 0:02:36]}  exd4 {[%clk 0:03:01]} 16. Bxd4 {[%clk 0:02:37]}  Be5 {[%clk 0:03:01]} 17. Re1 {[%clk 0:02:36]}  Qc7 {[%clk 0:02:57]} 18. Bg2 {[%clk 0:02:35]}  Rad8 {[%clk 0:02:57]} 19. Bxe5 {[%clk 0:02:25]}  Nxe5 {[%clk 0:02:58]} 20. Qe2 {[%clk 0:02:19]}  Rfe8 {[%clk 0:02:43]} 21. Ne4 {[%clk 0:02:19]}  Nxe4 {[%clk 0:02:27]} 22. Qxe4 {[%clk 0:02:20]}  Qb6 {[%clk 0:02:28]} 23. Qc2 {[%clk 0:02:14]}  Qb4 {[%clk 0:02:10]} 24. b3 {[%clk 0:02:05]}  Nf3+ {[%clk 0:02:10]} 25. Bxf3 {[%clk 0:02:05]}  Rxe1+ {[%clk 0:02:10]} 26. Rxe1 {[%clk 0:02:06]}  Qxe1+ {[%clk 0:02:11]} 27. Kg2 {[%clk 0:02:07]}  Rd2 {[%clk 0:02:11]} 0-1


[Site "https://www.chess.com"]

[Event "Titled Tuesday Blitz March 21 Early 2023"]
[White "Shimanov, Aleksandr"]
[Black "Howell, David W L"]
[WhiteFideId "4198603"]
[BlackFideId "410608"]
[WhiteElo "2631"]
[BlackElo "2567"]
[Result "1/2-1/2"]
[Round "11"]
[TimeControl "180+2"]
[Date "2023.03.21"]
[WhiteClock "0:00:03"]
[BlackClock "0:00:03"]

1. e4 {[%clk 0:03:00]}  e6 {[%clk 0:02:57]} 2. d4 {[%clk 0:03:00]}  d5 {[%clk 0:02:58]} 3. Nc3 {[%clk 0:03:00]}  Nf6 {[%clk 0:02:58]} 4. Bg5 {[%clk 0:02:55]}  h6 {[%clk 0:02:57]} 5. Bxf6 {[%clk 0:02:55]}  Qxf6 {[%clk 0:02:58]} 6. a3 {[%clk 0:02:56]}  Qd8 {[%clk 0:02:50]} 7. Nf3 {[%clk 0:02:52]}  Be7 {[%clk 0:02:48]} 8. Bd3 {[%clk 0:02:50]}  c6 {[%clk 0:02:45]} 9. Qe2 {[%clk 0:02:46]}  Nd7 {[%clk 0:02:41]} 10. O-O {[%clk 0:02:18]}  O-O {[%clk 0:02:33]} 11. Rfe1 {[%clk 0:02:18]}  Re8 {[%clk 0:02:25]} 12. Rad1 {[%clk 0:02:12]}  b6 {[%clk 0:02:20]} 13. Nb1 {[%clk 0:02:01]}  Bb7 {[%clk 0:02:17]} 14. e5 {[%clk 0:02:01]}  c5 {[%clk 0:02:11]} 15. c3 {[%clk 0:02:01]}  c4 {[%clk 0:02:00]} 16. Bc2 {[%clk 0:02:01]}  b5 {[%clk 0:02:01]} 17. Nbd2 {[%clk 0:02:00]}  a5 {[%clk 0:02:01]} 18. Nf1 {[%clk 0:01:44]}  b4 {[%clk 0:02:02]} 19. axb4 {[%clk 0:01:44]}  axb4 {[%clk 0:02:02]} 20. Ng3 {[%clk 0:01:43]}  bxc3 {[%clk 0:01:46]} 21. bxc3 {[%clk 0:01:43]}  Ra3 {[%clk 0:01:46]} 22. Qd2 {[%clk 0:01:40]}  Qa5 {[%clk 0:01:41]} 23. Ne2 {[%clk 0:01:40]}  Bc6 {[%clk 0:01:28]} 24. Rb1 {[%clk 0:01:34]}  Rb8 {[%clk 0:01:14]} 25. Rxb8+ {[%clk 0:01:31]}  Nxb8 {[%clk 0:01:15]} 26. Bb1 {[%clk 0:01:30]}  Nd7 {[%clk 0:01:11]} 27. h4 {[%clk 0:01:26]}  Ba4 {[%clk 0:01:05]} 28. g4 {[%clk 0:01:26]}  Nf8 {[%clk 0:00:51]} 29. Kg2 {[%clk 0:01:19]}  Qd8 {[%clk 0:00:45]} 30. Rh1 {[%clk 0:01:19]}  Bb3 {[%clk 0:00:42]} 31. g5 {[%clk 0:01:16]}  h5 {[%clk 0:00:40]} 32. g6 {[%clk 0:00:55]}  Nxg6 {[%clk 0:00:40]} 33. Bxg6 {[%clk 0:00:54]}  fxg6 {[%clk 0:00:39]} 34. Nf4 {[%clk 0:00:55]}  Ra2 {[%clk 0:00:30]} 35. Qe3 {[%clk 0:00:55]}  Kf7 {[%clk 0:00:22]} 36. Nh3 {[%clk 0:00:52]}  Bc2 {[%clk 0:00:22]} 37. Nhg5+ {[%clk 0:00:50]}  Bxg5 {[%clk 0:00:22]} 38. Nxg5+ {[%clk 0:00:51]}  Ke7 {[%clk 0:00:21]} 39. Re1 {[%clk 0:00:39]}  Bf5 {[%clk 0:00:21]} 40. Re2 {[%clk 0:00:39]}  Qa5 {[%clk 0:00:19]} 41. Rxa2 {[%clk 0:00:38]}  Qxa2 {[%clk 0:00:20]} 42. Qc1 {[%clk 0:00:38]}  Kd7 {[%clk 0:00:20]} 43. Kg3 {[%clk 0:00:37]}  Kc6 {[%clk 0:00:20]} 44. Nf7 {[%clk 0:00:26]}  Qe2 {[%clk 0:00:19]} 45. f3 {[%clk 0:00:23]}  Qa2 {[%clk 0:00:08]} 46. Nd6 {[%clk 0:00:22]}  Bd3 {[%clk 0:00:05]} 47. Ne8 {[%clk 0:00:19]}  Qe2 {[%clk 0:00:03]} 48. Nxg7 {[%clk 0:00:18]}  Be4 {[%clk 0:00:03]} 49. fxe4 {[%clk 0:00:12]}  Qg4+ {[%clk 0:00:02]} 50. Kf2 {[%clk 0:00:10]}  Qxh4+ {[%clk 0:00:03]} 51. Ke2 {[%clk 0:00:08]}  Qxe4+ {[%clk 0:00:02]} 52. Qe3 {[%clk 0:00:08]}  Qg2+ {[%clk 0:00:02]} 53. Ke1 {[%clk 0:00:09]}  Qh1+ {[%clk 0:00:02]} 54. Kf2 {[%clk 0:00:09]}  Qh2+ {[%clk 0:00:02]} 55. Kf1 {[%clk 0:00:10]}  Qh1+ {[%clk 0:00:02]} 56. Ke2 {[%clk 0:00:09]}  Qg2+ {[%clk 0:00:03]} 57. Kd1 {[%clk 0:00:08]}  Qf1+ {[%clk 0:00:03]} 58. Kc2 {[%clk 0:00:09]}  Qf7 {[%clk 0:00:04]} 59. Qh6 {[%clk 0:00:08]}  Qf2+ {[%clk 0:00:04]} 60. Qd2 {[%clk 0:00:07]}  Qf7 {[%clk 0:00:04]} 61. Qh6 {[%clk 0:00:08]}  Qf2+ {[%clk 0:00:04]} 62. Kb1 {[%clk 0:00:08]}  Qf1+ {[%clk 0:00:04]} 63. Kb2 {[%clk 0:00:08]}  Qf2+ {[%clk 0:00:03]} 64. Ka3 {[%clk 0:00:08]}  Qf8+ {[%clk 0:00:03]} 65. Kb2 {[%clk 0:00:08]}  Qf2+ {[%clk 0:00:03]} 66. Kc1 {[%clk 0:00:08]}  Qf1+ {[%clk 0:00:03]} 67. Kb2 {[%clk 0:00:03]}  Qf2+ {[%clk 0:00:03]} 1/2-1/2


[Site "https://www.chess.com"]